[Event "*** SCC Grand Prix: Titled Tuesday Blitz"]
[Site "Chess.com"]
[Date "2020.07.07"]
[Round "8"]
[White "dretch"]
[Black "DarkAlekhine"]
[Result "1-0"]
[WhiteElo "2801"]
[BlackElo "2633"]
[TimeControl "180+1"]
[EndTime "11:30:56 PDT"]
[Termination "dretch won by resignation"]

1. d4 {[%clk 0:03:00.9]} 1... Nf6 {[%clk 0:02:59.6]} 2. c4 {[%clk 0:03:01.1]}
2... g6 {[%clk 0:02:59.9]} 3. Nc3 {[%clk 0:03:01.6]} 3... Bg7 {[%clk 0:03:00.3]}
4. e4 {[%clk 0:03:02.2]} 4... d6 {[%clk 0:03:00.7]} 5. Nf3 {[%clk 0:03:02.7]}
5... O-O {[%clk 0:03:00.9]} 6. h3 {[%clk 0:03:03.3]} 6... e5 {[%clk 0:03:00.2]}
7. dxe5 {[%clk 0:03:03.8]} 7... dxe5 {[%clk 0:03:00]} 8. Qxd8 {[%clk 0:03:04.7]}
8... Rxd8 {[%clk 0:03:00.6]} 9. Bg5 {[%clk 0:03:05.6]} 9... c6 {[%clk
0:02:46.3]} 10. Nxe5 {[%clk 0:03:05.6]} 10... Re8 {[%clk 0:02:45.1]} 11. O-O-O
{[%clk 0:03:05.4]} 11... Na6 {[%clk 0:02:39.2]} 12. Nf3 {[%clk 0:03:04.9]} 12...
h6 {[%clk 0:02:13.8]} 13. Be3 {[%clk 0:03:04.6]} 13... Nxe4 {[%clk 0:02:07.7]}
14. Nxe4 {[%clk 0:03:05.5]} 14... Rxe4 {[%clk 0:02:07.9]} 15. Rd8+ {[%clk
0:03:05.6]} 15... Kh7 {[%clk 0:02:08.2]} 16. h4 {[%clk 0:03:05.7]} 16... Nc7
{[%clk 0:02:04.8]} 17. Ng5+ {[%clk 0:03:01.6]} 17... hxg5 {[%clk 0:02:01.9]} 18.
hxg5+ {[%clk 0:03:02.5]} 18... Bh6 {[%clk 0:02:01.9]} 19. Rxh6+ {[%clk
0:03:01.8]} 19... Kg7 {[%clk 0:02:01.9]} 20. Rdh8 {[%clk 0:03:00]} 1-0

[Event "*** SCC Grand Prix: Titled Tuesday Blitz"]
[Site "Chess.com"]
[Date "2020.07.07"]
[Round "8"]
[White "monalize"]
[Black "Djager97"]
[Result "0-1"]
[WhiteElo "2265"]
[BlackElo "2394"]
[TimeControl "180+1"]
[EndTime "11:31:26 PDT"]
[Termination "Djager97 won by checkmate"]

1. e4 {[%clk 0:03:00.9]} 1... e5 {[%clk 0:02:59.8]} 2. Nf3 {[%clk 0:02:59.8]}
2... Nc6 {[%clk 0:03:00.2]} 3. Bb5 {[%clk 0:02:57.6]} 3... a6 {[%clk 0:03:00.1]}
4. Bxc6 {[%clk 0:02:56.5]} 4... dxc6 {[%clk 0:03:01]} 5. O-O {[%clk 0:02:56.5]}
5... Bd6 {[%clk 0:02:58.4]} 6. d4 {[%clk 0:02:54.9]} 6... exd4 {[%clk
0:02:58.5]} 7. Qxd4 {[%clk 0:02:53.5]} 7... f6 {[%clk 0:02:58.6]} 8. Be3 {[%clk
0:02:52.2]} 8... Ne7 {[%clk 0:02:51.7]} 9. Nbd2 {[%clk 0:02:50.6]} 9... Ng6
{[%clk 0:02:49.1]} 10. Nc4 {[%clk 0:02:46]} 10... Be6 {[%clk 0:02:45.2]} 11.
Nxd6+ {[%clk 0:02:44.5]} 11... Qxd6 {[%clk 0:02:45.5]} 12. Qc3 {[%clk 0:02:31]}
12... O-O-O {[%clk 0:02:34.5]} 13. a4 {[%clk 0:02:20.3]} 13... Ne5 {[%clk
0:02:22.5]} 14. Nd4 {[%clk 0:02:06.7]} 14... Ng4 {[%clk 0:02:15]} 15. Nxe6
{[%clk 0:02:02.9]} 15... Qxh2# {[%clk 0:02:14]} 0-1

[Event "*** SCC Grand Prix: Titled Tuesday Blitz"]
[Site "Chess.com"]
[Date "2020.07.07"]
[Round "8"]
[White "shnitez"]
[Black "gui_borba"]
[Result "1-0"]
[WhiteElo "2516"]
[BlackElo "2352"]
[TimeControl "180+1"]
[EndTime "11:31:45 PDT"]
[Termination "shnitez won by resignation"]

1. d4 {[%clk 0:03:00.9]} 1... Nf6 {[%clk 0:02:59.8]} 2. c4 {[%clk 0:03:00.8]}
2... e6 {[%clk 0:03:00]} 3. Nc3 {[%clk 0:02:59.3]} 3... Bb4 {[%clk 0:03:00.4]}
4. e3 {[%clk 0:02:58.9]} 4... O-O {[%clk 0:02:59.7]} 5. a3 {[%clk 0:02:58.1]}
5... Bxc3+ {[%clk 0:02:59.4]} 6. bxc3 {[%clk 0:02:59]} 6... d6 {[%clk
0:02:59.8]} 7. Bd3 {[%clk 0:02:59]} 7... b6 {[%clk 0:02:57.6]} 8. e4 {[%clk
0:02:57.5]} 8... e5 {[%clk 0:02:54.5]} 9. Bg5 {[%clk 0:02:52.6]} 9... h6 {[%clk
0:02:52.5]} 10. Bh4 {[%clk 0:02:52.7]} 10... c5 {[%clk 0:02:52.6]} 11. Ne2
{[%clk 0:02:50.7]} 11... Nc6 {[%clk 0:02:46.3]} 12. O-O {[%clk 0:02:40.9]} 12...
Ne7 {[%clk 0:02:42.6]} 13. Bxf6 {[%clk 0:02:38.7]} 13... gxf6 {[%clk 0:02:43.5]}
14. f4 {[%clk 0:02:31.4]} 14... Ng6 {[%clk 0:02:43.6]} 15. f5 {[%clk 0:02:12.4]}
15... Ne7 {[%clk 0:02:43.3]} 16. Ng3 {[%clk 0:01:42.5]} 16... exd4 {[%clk
0:02:29.3]} 17. Nh5 {[%clk 0:01:38.8]} 17... Nc6 {[%clk 0:02:27.6]} 18. Qg4+
{[%clk 0:01:37.8]} 1-0

[Event "*** SCC Grand Prix: Titled Tuesday Blitz"]
[Site "Chess.com"]
[Date "2020.07.07"]
[Round "8"]
[White "GigaQuparadze"]
[Black "VishnuPrasanna"]
[Result "1-0"]
[WhiteElo "2893"]
[BlackElo "2757"]
[TimeControl "180+1"]
[EndTime "11:31:48 PDT"]
[Termination "GigaQuparadze won by resignation"]

1. e4 {[%clk 0:03:00.9]} 1... c5 {[%clk 0:02:59.5]} 2. Ne2 {[%clk 0:03:00.4]}
2... d6 {[%clk 0:02:57.1]} 3. g3 {[%clk 0:02:59.5]} 3... Nc6 {[%clk 0:02:56.6]}
4. Bg2 {[%clk 0:02:59.1]} 4... Nf6 {[%clk 0:02:52.6]} 5. c3 {[%clk 0:02:59.1]}
5... e6 {[%clk 0:02:51.7]} 6. d4 {[%clk 0:02:58.3]} 6... d5 {[%clk 0:02:50.6]}
7. e5 {[%clk 0:02:52.7]} 7... Nd7 {[%clk 0:02:50.4]} 8. O-O {[%clk 0:02:52.3]}
8... b6 {[%clk 0:02:49]} 9. f4 {[%clk 0:02:50.5]} 9... g6 {[%clk 0:02:45.6]} 10.
Be3 {[%clk 0:02:48.3]} 10... a5 {[%clk 0:02:45]} 11. Nd2 {[%clk 0:02:48.1]}
11... Ba6 {[%clk 0:02:45.3]} 12. a4 {[%clk 0:02:46.1]} 12... Be7 {[%clk
0:02:44.6]} 13. Nf3 {[%clk 0:02:45.7]} 13... Rc8 {[%clk 0:02:29.7]} 14. Rf2
{[%clk 0:02:45.3]} 14... f6 {[%clk 0:02:23.4]} 15. g4 {[%clk 0:02:27.7]} 15...
f5 {[%clk 0:02:20.8]} 16. gxf5 {[%clk 0:02:27.6]} 16... gxf5 {[%clk 0:02:17.7]}
17. Ng3 {[%clk 0:02:26.7]} 17... cxd4 {[%clk 0:02:14.1]} 18. Nxd4 {[%clk
0:02:25.8]} 18... Nxd4 {[%clk 0:02:13.3]} 19. Qh5+ {[%clk 0:02:25.5]} 19... Kf8
{[%clk 0:02:12.3]} 20. Bxd4 {[%clk 0:02:17.6]} 20... h6 {[%clk 0:02:03.2]} 21.
Nxf5 {[%clk 0:02:15.3]} 21... exf5 {[%clk 0:02:02.6]} 22. e6 {[%clk 0:02:14.9]}
1-0

[Event "*** SCC Grand Prix: Titled Tuesday Blitz"]
[Site "Chess.com"]
[Date "2020.07.07"]
[Round "8"]
[White "sergeikim"]
[Black "Th3_Hound"]
[Result "1-0"]
[WhiteElo "2418"]
[BlackElo "2515"]
[TimeControl "180+1"]
[EndTime "11:32:10 PDT"]
[Termination "sergeikim won by resignation"]

1. d4 {[%clk 0:03:00.9]} 1... Nf6 {[%clk 0:02:59]} 2. c4 {[%clk 0:03:00.8]} 2...
g6 {[%clk 0:02:59.2]} 3. Nc3 {[%clk 0:03:00.9]} 3... d5 {[%clk 0:02:59.8]} 4.
cxd5 {[%clk 0:03:00.6]} 4... Nxd5 {[%clk 0:03:00.7]} 5. e4 {[%clk 0:03:01.3]}
5... Nxc3 {[%clk 0:03:00.9]} 6. bxc3 {[%clk 0:03:02.1]} 6... Bg7 {[%clk
0:03:01.2]} 7. Bc4 {[%clk 0:03:02.1]} 7... c5 {[%clk 0:03:01.5]} 8. Ne2 {[%clk
0:03:01.7]} 8... O-O {[%clk 0:03:01.9]} 9. O-O {[%clk 0:03:01.5]} 9... Nc6
{[%clk 0:03:01.7]} 10. Be3 {[%clk 0:03:00.5]} 10... Qc7 {[%clk 0:02:59.3]} 11.
Rc1 {[%clk 0:02:59.5]} 11... b6 {[%clk 0:02:58.3]} 12. Qd2 {[%clk 0:02:59.3]}
12... Bb7 {[%clk 0:02:57.1]} 13. Bh6 {[%clk 0:02:58.8]} 13... e6 {[%clk
0:02:56.5]} 14. Bxg7 {[%clk 0:02:58.5]} 14... Kxg7 {[%clk 0:02:56.5]} 15. f4
{[%clk 0:02:50.9]} 15... Na5 {[%clk 0:02:54.3]} 16. Bd3 {[%clk 0:02:50.1]} 16...
c4 {[%clk 0:02:53.7]} 17. Bb1 {[%clk 0:02:48.8]} 17... f5 {[%clk 0:02:54.6]} 18.
d5 {[%clk 0:02:38.3]} 18... Rad8 {[%clk 0:02:46.1]} 19. Nd4 {[%clk 0:02:36.1]}
19... Bc8 {[%clk 0:02:45]} 20. dxe6 {[%clk 0:02:30.5]} 20... fxe4 {[%clk
0:02:13.5]} 21. Bxe4 {[%clk 0:02:28.6]} 21... Qd6 {[%clk 0:02:07.3]} 22. f5
{[%clk 0:02:24]} 22... Qe5 {[%clk 0:02:00.6]} 23. Rce1 {[%clk 0:02:17.6]} 23...
gxf5 {[%clk 0:01:55.3]} 24. Qg5+ {[%clk 0:02:08.5]} 24... Kh8 {[%clk 0:01:54.7]}
25. e7 {[%clk 0:02:08.4]} 1-0

[Event "*** SCC Grand Prix: Titled Tuesday Blitz"]
[Site "Chess.com"]
[Date "2020.07.07"]
[Round "8"]
[White "Nikithebest"]
[Black "pavlitas17"]
[Result "1-0"]
[WhiteElo "2476"]
[BlackElo "2305"]
[TimeControl "180+1"]
[EndTime "11:32:27 PDT"]
[Termination "Nikithebest won by resignation"]

1. e4 {[%clk 0:03:00.9]} 1... c5 {[%clk 0:02:58.5]} 2. Nf3 {[%clk 0:03:00.8]}
2... d6 {[%clk 0:02:58.9]} 3. Bb5+ {[%clk 0:02:59.6]} 3... Nc6 {[%clk
0:02:56.2]} 4. Bxc6+ {[%clk 0:02:59.3]} 4... bxc6 {[%clk 0:02:56]} 5. O-O {[%clk
0:03:00.2]} 5... e5 {[%clk 0:02:55.9]} 6. Re1 {[%clk 0:02:58.2]} 6... g6 {[%clk
0:02:56]} 7. c3 {[%clk 0:02:57.4]} 7... Bg7 {[%clk 0:02:56.5]} 8. d4 {[%clk
0:02:56.6]} 8... cxd4 {[%clk 0:02:56.5]} 9. cxd4 {[%clk 0:02:56]} 9... exd4
{[%clk 0:02:56.3]} 10. Nxd4 {[%clk 0:02:53.9]} 10... Ne7 {[%clk 0:02:51.1]} 11.
Bg5 {[%clk 0:02:46.8]} 11... Qb6 {[%clk 0:02:50.9]} 12. Nb3 {[%clk 0:02:42.2]}
12... Qc7 {[%clk 0:02:43.2]} 13. Nc3 {[%clk 0:02:38.2]} 13... O-O {[%clk
0:02:42.7]} 14. Qd2 {[%clk 0:02:36.1]} 14... Be6 {[%clk 0:02:41.9]} 15. Nd4
{[%clk 0:02:31.5]} 15... Rad8 {[%clk 0:02:27.9]} 16. Bxe7 {[%clk 0:02:18.7]}
16... Qxe7 {[%clk 0:02:25.5]} 17. Nxc6 {[%clk 0:02:18]} 17... Qc7 {[%clk
0:02:23]} 18. Nxd8 {[%clk 0:02:17.4]} 18... Rxd8 {[%clk 0:02:23.9]} 19. Nd5
{[%clk 0:02:08.1]} 19... Qb7 {[%clk 0:02:23.8]} 20. Rab1 {[%clk 0:02:04.8]}
20... Rc8 {[%clk 0:02:19.4]} 21. b3 {[%clk 0:02:02.7]} 21... Rc5 {[%clk
0:02:18.4]} 22. Rbc1 {[%clk 0:02:00.6]} 22... Bxd5 {[%clk 0:02:13.6]} 23. Rxc5
{[%clk 0:01:56.9]} 23... dxc5 {[%clk 0:02:13.8]} 24. Qxd5 {[%clk 0:01:53.6]}
24... Qb4 {[%clk 0:02:11.3]} 25. Rd1 {[%clk 0:01:48.4]} 25... Bf6 {[%clk
0:02:10.7]} 26. e5 {[%clk 0:01:46.8]} 26... Be7 {[%clk 0:02:10.6]} 27. e6 {[%clk
0:01:45.6]} 27... f5 {[%clk 0:02:06.6]} 28. g3 {[%clk 0:01:41.2]} 1-0

[Event "*** SCC Grand Prix: Titled Tuesday Blitz"]
[Site "Chess.com"]
[Date "2020.07.07"]
[Round "8"]
[White "KNCP_719"]
[Black "Falia-p"]
[Result "1-0"]
[WhiteElo "2480"]
[BlackElo "2314"]
[TimeControl "180+1"]
[EndTime "11:32:47 PDT"]
[Termination "KNCP_719 won by resignation"]

1. d4 {[%clk 0:03:00.9]} 1... Nf6 {[%clk 0:02:58.9]} 2. Nf3 {[%clk 0:03:01.3]}
2... e6 {[%clk 0:02:56.3]} 3. e3 {[%clk 0:03:01.5]} 3... d5 {[%clk 0:02:53.5]}
4. Bd3 {[%clk 0:03:01.7]} 4... c5 {[%clk 0:02:47]} 5. O-O {[%clk 0:03:00.4]}
5... c4 {[%clk 0:02:44.9]} 6. Be2 {[%clk 0:02:59.9]} 6... Nc6 {[%clk 0:02:43.6]}
7. b3 {[%clk 0:03:00.3]} 7... cxb3 {[%clk 0:02:42.2]} 8. axb3 {[%clk 0:03:00.4]}
8... Bd6 {[%clk 0:02:40.5]} 9. Bb2 {[%clk 0:03:00.7]} 9... O-O {[%clk
0:02:39.7]} 10. Nbd2 {[%clk 0:03:01.2]} 10... Ne4 {[%clk 0:02:39.4]} 11. Nxe4
{[%clk 0:03:00.1]} 11... dxe4 {[%clk 0:02:39.6]} 12. Nd2 {[%clk 0:03:01]} 12...
f5 {[%clk 0:02:37.5]} 13. c4 {[%clk 0:03:01.2]} 13... Qc7 {[%clk 0:02:29.1]} 14.
h3 {[%clk 0:02:56.1]} 14... Qe7 {[%clk 0:02:26.3]} 15. d5 {[%clk 0:02:48.6]}
15... Ne5 {[%clk 0:02:23.4]} 16. c5 {[%clk 0:02:48.1]} 16... Bb8 {[%clk
0:02:12]} 17. d6 {[%clk 0:02:45.1]} 17... Qf6 {[%clk 0:02:12.1]} 18. Nc4 {[%clk
0:02:45]} 18... Nf3+ {[%clk 0:01:23.9]} 19. Bxf3 {[%clk 0:02:43]} 19... Qg5
{[%clk 0:01:24]} 20. Be2 {[%clk 0:02:42.2]} 20... Bd7 {[%clk 0:01:22.9]} 21. Ne5
{[%clk 0:02:35.5]} 21... Bc6 {[%clk 0:01:19.9]} 22. Bc4 {[%clk 0:02:30.8]} 22...
f4 {[%clk 0:01:16.6]} 23. Bxe6+ {[%clk 0:02:26.3]} 23... Kh8 {[%clk 0:01:16.8]}
24. Qg4 {[%clk 0:02:23.6]} 24... Qxg4 {[%clk 0:01:13.1]} 25. hxg4 {[%clk
0:02:20.1]} 1-0

[Event "*** SCC Grand Prix: Titled Tuesday Blitz"]
[Site "Chess.com"]
[Date "2020.07.07"]
[Round "8"]
[White "Efremov_Vlad"]
[Black "FMalexhdez"]
[Result "1-0"]
[WhiteElo "2203"]
[BlackElo "2117"]
[TimeControl "180+1"]
[EndTime "11:32:58 PDT"]
[Termination "Efremov_Vlad won by resignation"]

1. d4 {[%clk 0:03:00.9]} 1... Nf6 {[%clk 0:02:59.3]} 2. c4 {[%clk 0:03:01.1]}
2... e6 {[%clk 0:02:59.3]} 3. Nf3 {[%clk 0:03:00.8]} 3... d5 {[%clk 0:02:58.8]}
4. Nc3 {[%clk 0:03:00.4]} 4... Be7 {[%clk 0:02:56.2]} 5. Bf4 {[%clk 0:02:59.9]}
5... O-O {[%clk 0:02:56.2]} 6. e3 {[%clk 0:03:00.2]} 6... b6 {[%clk 0:02:52.5]}
7. Qc2 {[%clk 0:02:59.4]} 7... Bb7 {[%clk 0:02:45.6]} 8. Rd1 {[%clk 0:02:59.1]}
8... Nbd7 {[%clk 0:02:43.8]} 9. cxd5 {[%clk 0:02:55.9]} 9... exd5 {[%clk
0:02:38.1]} 10. Bd3 {[%clk 0:02:55.8]} 10... c5 {[%clk 0:02:34.8]} 11. O-O
{[%clk 0:02:55.2]} 11... c4 {[%clk 0:02:33.7]} 12. Bf5 {[%clk 0:02:53.9]} 12...
a6 {[%clk 0:02:26.9]} 13. Ne5 {[%clk 0:02:49]} 13... b5 {[%clk 0:02:21.7]} 14.
Nxd7 {[%clk 0:02:48.7]} 14... Nxd7 {[%clk 0:02:20.4]} 15. Bxh7+ {[%clk
0:02:48.6]} 15... Kh8 {[%clk 0:02:20]} 16. Bf5 {[%clk 0:02:47.7]} 16... g6
{[%clk 0:02:16.7]} 17. Bh3 {[%clk 0:02:46.1]} 17... Kg7 {[%clk 0:02:15.7]} 18.
e4 {[%clk 0:02:43]} 18... dxe4 {[%clk 0:02:06.6]} 19. Nxe4 {[%clk 0:02:43]}
19... Nf6 {[%clk 0:02:05.6]} 20. Be5 {[%clk 0:02:35.2]} 20... Qd5 {[%clk
0:02:03.5]} 21. f3 {[%clk 0:02:28.5]} 21... Rh8 {[%clk 0:02:02.5]} 22. Qd2
{[%clk 0:02:19.6]} 22... Rh5 {[%clk 0:01:59.6]} 23. Qf4 {[%clk 0:02:15.8]} 23...
Rxe5 {[%clk 0:01:37]} 24. dxe5 {[%clk 0:02:13.9]} 24... Qc5+ {[%clk 0:01:36.5]}
25. Kh1 {[%clk 0:02:10.9]} 25... Nd5 {[%clk 0:01:31.2]} 26. Nxc5 {[%clk
0:01:42]} 1-0

[Event "*** SCC Grand Prix: Titled Tuesday Blitz"]
[Site "Chess.com"]
[Date "2020.07.07"]
[Round "8"]
[White "Natalya_Buksa"]
[Black "2346PL"]
[Result "1-0"]
[WhiteElo "2560"]
[BlackElo "2411"]
[TimeControl "180+1"]
[EndTime "11:32:59 PDT"]
[Termination "Natalya_Buksa won by resignation"]

1. d4 {[%clk 0:03:00.9]} 1... f5 {[%clk 0:02:59.7]} 2. g4 {[%clk 0:02:59.5]}
2... e6 {[%clk 0:02:57.3]} 3. gxf5 {[%clk 0:02:52]} 3... exf5 {[%clk 0:02:57.4]}
4. Nc3 {[%clk 0:02:40.9]} 4... d5 {[%clk 0:02:56.2]} 5. Nf3 {[%clk 0:02:32]}
5... Nf6 {[%clk 0:02:55.7]} 6. Bg5 {[%clk 0:02:32.5]} 6... c6 {[%clk 0:02:53.7]}
7. Qd2 {[%clk 0:02:31.4]} 7... Be7 {[%clk 0:02:50.3]} 8. Bxf6 {[%clk 0:02:26.4]}
8... Bxf6 {[%clk 0:02:50]} 9. O-O-O {[%clk 0:02:26.7]} 9... Be6 {[%clk
0:02:46.1]} 10. Rg1 {[%clk 0:02:26.6]} 10... Nd7 {[%clk 0:02:40.3]} 11. Ng5
{[%clk 0:02:15.8]} 11... Bxg5 {[%clk 0:02:39.6]} 12. Rxg5 {[%clk 0:02:15.3]}
12... g6 {[%clk 0:02:39.8]} 13. Rg1 {[%clk 0:02:02.7]} 13... Qh4 {[%clk
0:02:36.8]} 14. h3 {[%clk 0:01:57.1]} 14... O-O-O {[%clk 0:02:35.8]} 15. f3
{[%clk 0:01:54.6]} 15... f4 {[%clk 0:02:29.1]} 16. e4 {[%clk 0:01:40.7]} 16...
fxe3 {[%clk 0:02:27.5]} 17. Qxe3 {[%clk 0:01:41.1]} 17... Rde8 {[%clk
0:02:27.4]} 18. Qd2 {[%clk 0:01:26.5]} 18... Bf5 {[%clk 0:02:19.9]} 19. Na4
{[%clk 0:01:17.6]} 19... Kb8 {[%clk 0:02:10.3]} 20. Kb1 {[%clk 0:01:13.4]} 20...
Re7 {[%clk 0:02:02.9]} 21. Qb4 {[%clk 0:01:12.9]} 21... Rhe8 {[%clk 0:02:01.3]}
22. Ba6 {[%clk 0:01:10.8]} 22... b6 {[%clk 0:01:56.7]} 23. Qd6+ {[%clk 0:01:10]}
1-0

[Event "*** SCC Grand Prix: Titled Tuesday Blitz"]
[Site "Chess.com"]
[Date "2020.07.07"]
[Round "8"]
[White "InitiatingASC"]
[Black "ShahMatKanal"]
[Result "0-1"]
[WhiteElo "2334"]
[BlackElo "2482"]
[TimeControl "180+1"]
[EndTime "11:33:06 PDT"]
[Termination "ShahMatKanal won by resignation"]

1. Nf3 {[%clk 0:03:00.9]} 1... d5 {[%clk 0:02:59.6]} 2. b3 {[%clk 0:03:00.6]}
2... Nf6 {[%clk 0:03:00]} 3. Bb2 {[%clk 0:03:00.7]} 3... Bf5 {[%clk 0:03:00.3]}
4. e3 {[%clk 0:03:00.9]} 4... e6 {[%clk 0:03:00.3]} 5. c4 {[%clk 0:03:01.1]}
5... c6 {[%clk 0:03:00.5]} 6. cxd5 {[%clk 0:03:01.3]} 6... exd5 {[%clk
0:03:00.4]} 7. Be2 {[%clk 0:03:01.8]} 7... Bd6 {[%clk 0:02:59.1]} 8. O-O {[%clk
0:03:01.9]} 8... O-O {[%clk 0:02:59.2]} 9. d3 {[%clk 0:03:02.5]} 9... Nbd7
{[%clk 0:02:59]} 10. Nbd2 {[%clk 0:03:03]} 10... h6 {[%clk 0:02:58.7]} 11. Rc1
{[%clk 0:02:57.9]} 11... Bh7 {[%clk 0:02:57]} 12. Qc2 {[%clk 0:02:57.3]} 12...
Re8 {[%clk 0:02:56.6]} 13. Rfe1 {[%clk 0:02:56.3]} 13... Qe7 {[%clk 0:02:50.8]}
14. Qb1 {[%clk 0:02:55]} 14... Ng4 {[%clk 0:02:47.6]} 15. Nf1 {[%clk 0:02:51.3]}
15... Nde5 {[%clk 0:02:43.3]} 16. Nxe5 {[%clk 0:02:45.5]} 16... Nxe5 {[%clk
0:02:42.9]} 17. Rcd1 {[%clk 0:02:35.4]} 17... a5 {[%clk 0:02:36.9]} 18. Qa1
{[%clk 0:02:34.1]} 18... a4 {[%clk 0:02:36.5]} 19. Bxe5 {[%clk 0:02:16.9]} 19...
Bxe5 {[%clk 0:02:36]} 20. d4 {[%clk 0:02:17.3]} 20... Bd6 {[%clk 0:02:33.2]} 21.
bxa4 {[%clk 0:02:03]} 21... Rxa4 {[%clk 0:02:32.8]} 22. Qb2 {[%clk 0:02:02.4]}
22... Rea8 {[%clk 0:02:30.4]} 23. Ra1 {[%clk 0:01:59.2]} 23... Ba3 {[%clk
0:02:08.7]} 24. Qb3 {[%clk 0:01:55.5]} 24... Rb4 {[%clk 0:02:05.6]} 25. Qd1
{[%clk 0:01:55.3]} 25... Bb2 {[%clk 0:02:02.7]} 26. Nd2 {[%clk 0:01:48]} 26...
Bxa1 {[%clk 0:01:59]} 27. Qxa1 {[%clk 0:01:48.9]} 27... Rba4 {[%clk 0:01:51.8]}
28. Qc3 {[%clk 0:01:34.1]} 28... Rxa2 {[%clk 0:01:50.3]} 29. Nb3 {[%clk
0:01:25.1]} 29... Rc2 {[%clk 0:01:47.5]} 0-1

[Event "*** SCC Grand Prix: Titled Tuesday Blitz"]
[Site "Chess.com"]
[Date "2020.07.07"]
[Round "8"]
[White "ketster"]
[Black "Sacbutt"]
[Result "1-0"]
[WhiteElo "2435"]
[BlackElo "2306"]
[TimeControl "180+1"]
[EndTime "11:33:09 PDT"]
[Termination "ketster won by resignation"]

1. d4 {[%clk 0:03:00.9]} 1... Nf6 {[%clk 0:02:59.5]} 2. c4 {[%clk 0:03:00.5]}
2... e6 {[%clk 0:02:59.5]} 3. g3 {[%clk 0:03:00]} 3... d5 {[%clk 0:02:58.6]} 4.
Bg2 {[%clk 0:02:59.4]} 4... Be7 {[%clk 0:02:58.8]} 5. Nf3 {[%clk 0:02:59.3]}
5... O-O {[%clk 0:02:58.8]} 6. Nc3 {[%clk 0:02:59.2]} 6... a6 {[%clk 0:02:57.9]}
7. O-O {[%clk 0:02:58.7]} 7... Nbd7 {[%clk 0:02:57]} 8. b3 {[%clk 0:02:57.6]}
8... c6 {[%clk 0:02:46.7]} 9. Bb2 {[%clk 0:02:54.3]} 9... Qc7 {[%clk 0:02:42.4]}
10. Rc1 {[%clk 0:02:48.1]} 10... dxc4 {[%clk 0:02:27.3]} 11. bxc4 {[%clk
0:02:47.4]} 11... c5 {[%clk 0:02:25.8]} 12. d5 {[%clk 0:02:41.8]} 12... exd5
{[%clk 0:02:24.5]} 13. cxd5 {[%clk 0:02:33.6]} 13... Bd6 {[%clk 0:02:21]} 14. e4
{[%clk 0:02:24.6]} 14... Ne5 {[%clk 0:01:57.8]} 15. Nxe5 {[%clk 0:02:05.3]}
15... Bxe5 {[%clk 0:01:58.7]} 16. Na4 {[%clk 0:02:05]} 16... Bxb2 {[%clk
0:01:53.1]} 17. Nxb2 {[%clk 0:02:04.6]} 17... Rd8 {[%clk 0:01:28.1]} 18. Qc2
{[%clk 0:02:00.6]} 18... b6 {[%clk 0:00:52.8]} 19. d6 {[%clk 0:01:57.1]} 19...
Qa7 {[%clk 0:00:49.7]} 20. e5 {[%clk 0:01:54.2]} 1-0

[Event "*** SCC Grand Prix: Titled Tuesday Blitz"]
[Site "Chess.com"]
[Date "2020.07.07"]
[Round "8"]
[White "ElCoachRene"]
[Black "sertalzin"]
[Result "1-0"]
[WhiteElo "2222"]
[BlackElo "2024"]
[TimeControl "180+1"]
[EndTime "11:33:28 PDT"]
[Termination "ElCoachRene won by resignation"]

1. d4 {[%clk 0:03:00.9]} 1... d5 {[%clk 0:02:59]} 2. Bf4 {[%clk 0:03:00.7]} 2...
Nf6 {[%clk 0:02:58]} 3. e3 {[%clk 0:03:01.2]} 3... g6 {[%clk 0:02:57.7]} 4. Nf3
{[%clk 0:02:59.2]} 4... Bg7 {[%clk 0:02:58.2]} 5. Nbd2 {[%clk 0:02:59.5]} 5...
O-O {[%clk 0:02:58.6]} 6. Bd3 {[%clk 0:02:59.8]} 6... Nh5 {[%clk 0:02:45.8]} 7.
Bg5 {[%clk 0:02:57.6]} 7... h6 {[%clk 0:02:44.7]} 8. Bh4 {[%clk 0:02:57]} 8...
g5 {[%clk 0:02:39.5]} 9. Nxg5 {[%clk 0:02:55.6]} 9... hxg5 {[%clk 0:02:38.1]}
10. Qxh5 {[%clk 0:02:54.9]} 10... Re8 {[%clk 0:01:53]} 11. Qh7+ {[%clk
0:02:28.1]} 11... Kf8 {[%clk 0:01:51.6]} 12. Bxg5 {[%clk 0:02:26.7]} 12... f5
{[%clk 0:01:11.8]} 13. Bxf5 {[%clk 0:02:14.9]} 13... Bxf5 {[%clk 0:01:10.3]} 14.
Qxf5+ {[%clk 0:02:14.7]} 14... Kg8 {[%clk 0:01:09.6]} 15. Qg6 {[%clk 0:01:56.4]}
15... Nc6 {[%clk 0:00:40.1]} 16. Bh6 {[%clk 0:01:46.1]} 1-0

[Event "*** SCC Grand Prix: Titled Tuesday Blitz"]
[Site "Chess.com"]
[Date "2020.07.07"]
[Round "8"]
[White "VladimirBugayev"]
[Black "rududuyk"]
[Result "1-0"]
[WhiteElo "2250"]
[BlackElo "2082"]
[TimeControl "180+1"]
[EndTime "11:33:40 PDT"]
[Termination "VladimirBugayev won by resignation"]

1. e4 {[%clk 0:03:00.9]} 1... e6 {[%clk 0:02:59.9]} 2. d4 {[%clk 0:02:57.6]}
2... d5 {[%clk 0:03:00.2]} 3. Nd2 {[%clk 0:02:58]} 3... Nf6 {[%clk 0:03:00.2]}
4. e5 {[%clk 0:02:57.5]} 4... Nfd7 {[%clk 0:03:00.7]} 5. Bd3 {[%clk 0:02:57.9]}
5... c5 {[%clk 0:03:00.9]} 6. c3 {[%clk 0:02:58.4]} 6... Nc6 {[%clk 0:03:01.2]}
7. Ne2 {[%clk 0:02:58.9]} 7... cxd4 {[%clk 0:02:58.8]} 8. cxd4 {[%clk
0:02:58.6]} 8... f6 {[%clk 0:02:58.7]} 9. exf6 {[%clk 0:02:57.5]} 9... Nxf6
{[%clk 0:02:59.6]} 10. Nf3 {[%clk 0:02:57.4]} 10... Bd6 {[%clk 0:02:58.8]} 11.
Bf4 {[%clk 0:02:53.9]} 11... O-O {[%clk 0:02:34.9]} 12. O-O {[%clk 0:02:53.1]}
12... Nh5 {[%clk 0:02:26.4]} 13. Bxd6 {[%clk 0:02:52]} 13... Qxd6 {[%clk
0:02:27.3]} 14. Qc2 {[%clk 0:02:24.4]} 14... g6 {[%clk 0:02:17.2]} 15. Bxg6
{[%clk 0:02:20.5]} 15... hxg6 {[%clk 0:02:16.8]} 16. Qxg6+ {[%clk 0:02:20.2]}
16... Ng7 {[%clk 0:02:15.6]} 17. Ng5 {[%clk 0:02:20.7]} 17... Rf5 {[%clk
0:01:45.1]} 18. Qh7+ {[%clk 0:02:11.5]} 18... Kf8 {[%clk 0:01:44.5]} 19. Qh8+
{[%clk 0:02:12.1]} 19... Ke7 {[%clk 0:01:42.4]} 20. Qxg7+ {[%clk 0:02:12.6]}
20... Ke8 {[%clk 0:01:41]} 21. Ng3 {[%clk 0:02:01.5]} 21... Rf8 {[%clk 0:01:31]}
22. Nh7 {[%clk 0:01:50.6]} 22... Rf4 {[%clk 0:01:17.1]} 23. Nh5 {[%clk
0:01:43.3]} 23... Rh4 {[%clk 0:01:08.2]} 24. N5f6+ {[%clk 0:01:36.3]} 24... Kd8
{[%clk 0:01:07.1]} 25. Qg8+ {[%clk 0:01:33.8]} 25... Kc7 {[%clk 0:00:53.8]} 26.
Ne8+ {[%clk 0:01:33.3]} 26... Kd7 {[%clk 0:00:53.6]} 27. Nxd6 {[%clk 0:01:31.7]}
27... Kxd6 {[%clk 0:00:54.5]} 28. Qg3+ {[%clk 0:01:31.5]} 1-0